bitfinex/quotes_BTCUSD_20250316
["timestamp","ask_amount","ask_price","bid_price","bid_amount"]
[1742162975006,0.60501856,82623.0,82617.0,0.0001693]
[1742162975007,0.505765,82618.0,82617.0,3e-07]
[1742162975252,0.0462,82617.0,82591.0,0.0008]
[1742162975475,0.012109,82577.0,82572.0,0.0001694]
[1742162975681,0.005,82525.0,82492.0,0.02436203]
[1742162975888,0.005,82512.0,82500.0,1.216221]
[1742162976112,0.005,82512.0,82500.0,1.2041]
[1742162976260,0.02870058,82512.0,82500.0,1.2041]
[1742162976496,0.3816,82511.0,82500.0,1.15027]
[1742162976675,0.3816,82511.0,82447.0,0.012129]
[1742162976676,0.005,82450.0,82447.0,0.012129]
[1742162976865,0.005,82445.0,82444.0,0.025]
[1742162977113,0.005,82445.0,82444.0,0.037129]
[1742162977396,0.354355,82472.0,82471.0,0.012125]
[1742162977607,0.354355,82472.0,82471.0,0.194007]
[1742162977809,0.00284239,82472.0,82471.0,0.2473589]
[1742162977988,0.01900249,82474.0,82471.0,0.2473589]
[1742162977989,0.01900249,82474.0,82473.0,0.012125]
[1742162978334,0.01454085,82463.0,82444.0,0.025]
[1742162978544,0.3,82452.0,82444.0,0.025]
[1742162978756,0.52573785,82445.0,82434.0,0.00269315]
[1742162978958,0.52576285,82435.0,82434.0,0.00269315]
[1742162979163,0.67376285,82435.0,82434.0,0.00269315]
[1742162979380,0.33167085,82434.0,82433.0,0.35916712]
[1742162979588,0.33167085,82434.0,82433.0,0.25206712]
[1742162979589,0.32667085,82434.0,82433.0,0.25206712]
[1742162979791,0.33167085,82434.0,82433.0,0.25206712]
[1742162980002,0.703577,82435.0,82434.0,0.194094]
[1742162980003,0.349355,82435.0,82434.0,0.194094]
[1742162980184,0.3503364,82450.0,82449.0,0.194059]
[1742162980386,0.0009814,82450.0,82437.0,0.01213]
[1742162980594,0.76916,82467.0,82433.0,0.28948483]
[1742162980595,0.3,82461.0,82450.0,0.012128]
[1742162980758,0.3,82461.0,82459.0,0.194034]
[1742162980962,0.76916,82467.0,82454.0,0.012127]
[1742162981160,0.00151617,82466.0,82454.0,0.194045]
[1742162981363,0.012128,82453.0,82436.0,0.194085]
[1742162981567,0.349355,82455.0,82444.0,0.012129]
[1742162981750,0.00151632,82454.0,82447.0,0.012129]
[1742162981949,0.349355,82455.0,82435.0,0.206222]
[1742162982176,0.00151624,82454.0,82439.0,0.01213]
[1742162982515,0.00041018,82451.0,82447.0,0.012129]
[1742162982700,0.00041018,82451.0,82450.0,0.012128]
[1742162982957,0.01941986,82451.0,82450.0,0.0739848]
[1742162983147,0.349355,82471.0,82454.0,0.012127]
[1742162983282,0.162083,82483.0,82465.0,0.012126]
[1742162983490,0.0009807,82471.0,82469.0,0.194011]
[1742162983842,0.012122,82494.0,82478.0,0.193991]
[1742162984046,0.349355,82505.0,82477.0,0.012124]
[1742162984047,0.01212,82504.0,82486.0,0.206095]
[1742162984249,0.00399768,82487.0,82486.0,0.206095]
[1742162984451,0.00399768,82487.0,82486.0,0.20730719]
[1742162984672,0.00380872,82488.0,82483.0,0.012123]
[1742162984785,0.00380872,82488.0,82487.0,0.012123]
[1742162984990,0.206054,82503.0,82491.0,0.19396]
[1742162985192,0.01212,82508.0,82495.0,0.206071]
[1742162985413,0.00305932,82502.0,82496.0,0.012121]
[1742162985609,0.012119,82514.0,82498.0,0.012121]
[1742162987779,0.012114,82547.0,82537.0,0.012115]
[1742162987911,0.012114,82549.0,82540.0,0.012115]
[1742162988331,0.012116,82531.0,82503.0,0.0827]
[1742162988526,0.012117,82528.0,82527.0,4.149e-05]
[1742162988898,0.193842,82542.0,82530.0,0.193868]
[1742162989104,0.0009961,82544.0,82543.0,0.012114]
[1742162989305,0.0009961,82544.0,82543.0,0.0351325]
[1742162989501,0.205918,82557.0,82544.0,0.012114]
[1742162989727,0.205918,82557.0,82543.0,0.0351325]
[1742162989728,0.00151424,82562.0,82554.0,0.012113]
[1742162989948,0.012111,82566.0,82555.0,0.19381]
[1742162990096,0.012112,82561.0,82552.0,0.205929]
[1742162990265,0.012111,82565.0,82553.0,0.012113]
[1742162990491,0.012111,82564.0,82556.0,0.012112]
[1742162990708,0.012111,82564.0,82554.0,0.0218042]
[1742162990709,0.0009882,82567.0,82561.0,0.012112]
[1742162990950,0.0009882,82567.0,82564.0,0.193788]
[1742162991123,0.00041094,82567.0,82564.0,0.012111]
[1742162991324,0.00041094,82567.0,82565.0,0.193786]
[1742162991525,0.00041094,82567.0,82566.0,0.012111]
[1742162991725,0.193784,82566.0,82555.0,0.193809]
[1742162991935,0.00310539,82565.0,82558.0,0.012112]
[1742162992137,0.00041094,82567.0,82566.0,0.193784]
[1742162992338,0.00041094,82567.0,82566.0,0.2155847]
[1742162992540,0.00041094,82567.0,82566.0,0.2276957]
[1742162993733,0.00041094,82567.0,82566.0,0.22890668]
[1742162993937,0.00041094,82567.0,82566.0,1.72890668]
[1742162994136,0.00041094,82567.0,82566.0,1.78853655]
[1742162994341,0.00041094,82567.0,82566.0,1.7739957]
[1742162994900,0.00041094,82567.0,82566.0,1.78853655]
[1742162995869,0.0008,82589.0,82588.0,0.20584]
[1742162996084,0.0008,82589.0,82588.0,0.2675931]
[1742162997368,0.0008,82589.0,82588.0,0.3502931]
[1742162997768,0.0008,82589.0,82588.0,1.8502931]
[1742162998073,0.012109,82579.0,82571.0,0.0827]
[1742162998230,0.193775,82570.0,82566.0,4.149e-05]
[1742162998630,0.00320408,82569.0,82566.0,4.149e-05]
[1742162999079,0.012109,82579.0,82571.0,0.193772]
[1742162999279,0.012109,82579.0,82572.0,0.04118135]
[1742162999504,0.012109,82580.0,82570.0,0.205883]
[1742162999707,0.193753,82579.0,82571.0,0.01211]
[1742162999830,0.193749,82581.0,82574.0,0.193763]
[1742163000032,0.0009947,82583.0,82582.0,0.205855]
[1742163000459,0.193724,82592.0,82586.0,0.012108]
[1742163000655,0.012107,82593.0,82586.0,0.267599]
[1742163001368,0.205829,82593.0,82586.0,0.267599]
[1742163001777,0.193724,82592.0,82586.0,0.073864]
[1742163001961,0.205831,82592.0,82586.0,0.012108]
[1742163002316,0.193727,82591.0,82586.0,0.012108]
[1742163002641,0.193724,82592.0,82586.0,0.205844]
[1742163002841,0.012106,82602.0,82588.0,0.012108]
[1742163003043,0.012106,82597.0,82588.0,0.012108]
[1742163003305,0.205822,82596.0,82588.0,0.012108]
[1742163003833,0.19371,82598.0,82588.0,0.012108]
[1742163004113,0.000982,82599.0,82588.0,0.012108]
[1742163004873,0.000982,82599.0,82588.0,1.512108]
[1742163006132,0.000982,82599.0,82588.0,1.588808]
[1742163006308,1e-06,82589.0,82588.0,1.70838303]
[1742163006703,0.349355,82617.0,82616.0,0.012104]
[1742163006923,0.349355,82617.0,82616.0,0.205771]
[1742163006924,0.00418898,82617.0,82616.0,0.205771]
[1742163007133,0.0008,82629.0,82625.0,0.193644]
[1742163007525,0.00320408,82628.0,82627.0,0.205741]
[1742163007734,0.00320408,82628.0,82627.0,0.2686744]
[1742163007948,0.00320408,82628.0,82627.0,0.26871589]
[1742163008121,0.0008,82629.0,82628.0,0.012102]
[1742163008739,0.0008,82629.0,82628.0,0.091402]
[1742163009056,0.34931351,82624.0,82579.0,0.0793]
[1742163009257,0.012109,82578.0,82569.0,0.012111]
[1742163009453,0.193742,82584.0,82580.0,0.19375]
[1742163009653,0.441267,82603.0,82579.0,0.012109]
[1742163009654,0.205819,82597.0,82583.0,0.012109]
[1742163009852,0.34931351,82597.0,82591.0,0.012107]
[1742163010103,0.34931351,82597.0,82593.0,0.193719]
[1742163010338,0.34931351,82597.0,82594.0,0.05221979]
[1742163010529,0.193715,82596.0,82594.0,0.05221979]
[1742163010799,0.34931351,82597.0,82594.0,0.05221979]
[1742163011041,0.34931351,82597.0,82594.0,0.06432679]
[1742163011256,0.34931351,82597.0,82595.0,0.205822]
[1742163011449,0.34931351,82597.0,82596.0,0.10087008]
[1742163011887,0.34931351,82597.0,82596.0,0.08876308]
[1742163012375,0.193713,82596.0,82594.0,0.05221979]
[1742163012378,0.34931351,82597.0,82594.0,0.05221979]
[1742163012606,0.34931351,82597.0,82596.0,0.193713]
[1742163012849,0.34931351,82597.0,82596.0,0.20582]
[1742163014039,0.0009819,82613.0,82612.0,0.20578]
[1742163014502,0.01897402,82624.0,82619.0,0.012103]
[1742163014753,0.01897402,82624.0,82623.0,0.012103]
[1742163015235,0.01897402,82624.0,82619.0,0.0351005]
[1742163015481,0.012902,82629.0,82628.0,0.20574]
[1742163015482,0.0008,82629.0,82628.0,0.20574]
[1742163015721,0.0008,82629.0,82627.0,0.19364]
[1742163015956,0.0008,82629.0,82628.0,0.012102]
[1742163016205,0.00395506,82629.0,82628.0,0.012102]
[1742163016443,0.0008,82629.0,82628.0,0.012102]
[1742163016671,0.00395506,82629.0,82628.0,0.012102]
[1742163016898,0.0008,82629.0,82628.0,0.012102]
[1742163017128,0.00395506,82629.0,82628.0,0.012102]
[1742163018042,0.00395506,82629.0,82628.0,0.0943997]
[1742163018408,0.0008,82629.0,82628.0,0.0943997]
[1742163018627,0.00396782,82629.0,82628.0,0.0943997]
[1742163018841,0.0008,82629.0,82628.0,0.0943997]
[1742163019067,0.00343985,82629.0,82628.0,0.0943997]
[1742163019286,0.0008,82629.0,82628.0,0.0943997]
[1742163019714,0.012104,82614.0,82606.0,0.012105]
[1742163020008,0.012103,82620.0,82606.0,0.012105]
[1742163020009,0.193661,82619.0,82615.0,0.193667]
[1742163020210,0.00231301,82629.0,82611.0,0.19380232]
[1742163020211,0.0008,82629.0,82627.0,0.193641]
[1742163020662,0.0008,82629.0,82626.0,0.205742]
[1742163020902,0.00255834,82628.0,82625.0,0.193645]
[1742163021124,0.19619734,82628.0,82623.0,0.205751]
[1742163021351,0.19619734,82628.0,82622.0,0.193651]
[1742163021352,0.20829934,82628.0,82622.0,0.193651]
[1742163021570,0.193646,82625.0,82622.0,0.193651]
[1742163021785,0.193643,82626.0,82623.0,0.19365]
[1742163022002,0.00255834,82625.0,82624.0,0.193647]
[1742163022459,0.193645,82626.0,82622.0,0.012103]
[1742163022631,0.012103,82622.0,82618.0,0.193661]
[1742163022927,0.193653,82622.0,82619.0,0.193658]
[1742163023133,0.193651,82623.0,82620.0,0.193657]
[1742163023619,0.00255834,82622.0,82621.0,0.012103]
[1742163023848,0.00255834,82622.0,82621.0,0.205758]
[1742163024081,0.1947748,82629.0,82626.0,0.193643]
[1742163024323,0.0011378,82629.0,82626.0,0.0435697]
[1742163024551,0.00255834,82628.0,82627.0,0.205743]
[1742163025698,0.00255834,82628.0,82627.0,0.20695322]
[1742163025938,0.0011378,82629.0,82628.0,0.20574]
[1742163026181,0.0011378,82629.0,82628.0,0.31654917]
[1742163026944,0.0011378,82629.0,82628.0,1.81654917]
[1742163027182,0.0011378,82629.0,82628.0,1.83109002]
[1742163028399,0.0011378,82629.0,82628.0,1.98113002]
[1742163030320,0.10715731,82649.0,82643.0,0.205703]
[1742163030567,0.10715731,82649.0,82643.0,0.0617122]
[1742163030806,0.10715731,82649.0,82640.0,0.205709]
[1742163030807,0.193601,82644.0,82640.0,0.19361]
[1742163031236,0.00255834,82643.0,82641.0,0.193608]
[1742163031473,0.00255834,82643.0,82642.0,0.193606]
[1742163031724,0.193599,82645.0,82642.0,0.193606]
[1742163031981,0.012437,82650.0,82640.0,0.0121]
[1742163032216,0.000338,82650.0,82648.0,0.205691]
[1742163032450,0.000338,82650.0,82648.0,0.2673995]
[1742163032683,0.0121,82641.0,82631.0,0.012101]
[1742163032877,0.19362,82637.0,82632.0,0.193627]
[1742163033082,0.193622,82635.0,82633.0,0.029703]
[1742163033293,0.193624,82634.0,82633.0,0.029703]
[1742163033764,0.193627,82633.0,82629.0,0.193635]
[1742163034007,0.19363,82632.0,82627.0,0.091302]
[1742163034258,0.193667,82616.0,82611.0,0.285382]
[1742163034489,0.193641,82627.0,82617.0,0.012104]
[1742163034735,0.493613,82639.0,82628.0,0.012102]
[1742163034971,0.0003388,82649.0,82638.0,0.0121]
[1742163035234,0.19361,82640.0,82639.0,0.0229924]
[1742163035502,0.193611,82640.0,82631.0,0.012101]
[1742163035719,0.0121,82641.0,82633.0,0.205726]
[1742163035927,0.00222553,82639.0,82638.0,0.205713]
[1742163036126,0.193578,82654.0,82648.0,0.205691]
[1742163036351,0.342958,82663.0,82648.0,0.205691]
[1742163036352,0.193561,82663.0,82648.0,0.205691]
[1742163036551,0.00256433,82649.0,82648.0,0.285291]
[1742163036751,0.0003388,82649.0,82648.0,0.354959]
[1742163038017,0.00256433,82649.0,82648.0,0.354959]
[1742163038455,0.0003388,82649.0,82648.0,0.354959]
[1742163040972,0.00256758,82649.0,82648.0,0.354959]
[1742163041682,0.2060268,82649.0,82648.0,0.0796]
[1742163041877,0.0025691,82649.0,82648.0,0.0796]
[1742163042058,0.1961581,82649.0,82648.0,0.0796]
[1742163042237,0.193596,82647.0,82644.0,0.193599]
[1742163042711,0.00222837,82646.0,82645.0,0.193599]
[1742163042863,0.00222837,82646.0,82645.0,0.2720582]
[1742163043069,0.1939288,82649.0,82646.0,0.193595]
[1742163043278,0.0003388,82649.0,82648.0,0.205691]
[1742163044350,0.1939288,82649.0,82647.0,1.5]
[1742163044873,0.0003388,82649.0,82648.0,0.193592]
[1742163045102,0.0003388,82649.0,82648.0,0.31316703]
[1742163045328,0.0003388,82649.0,82648.0,0.32526603]
[1742163047608,0.0003388,82649.0,82648.0,0.205691]
[1742163047848,0.0003388,82649.0,82645.0,0.012099]
[1742163048066,0.0003388,82649.0,82648.0,0.193592]
[1742163048773,0.0003388,82649.0,82648.0,0.205691]
[1742163051114,0.01466252,82649.0,82642.0,0.205705]
[1742163051343,0.205695,82647.0,82644.0,0.193601]
[1742163051554,0.193599,82645.0,82642.0,0.2354455]
[1742163051793,0.00222472,82644.0,82643.0,0.193603]
[1742163052001,0.012099,82648.0,82643.0,0.25828825]
[1742163052181,0.19582072,82647.0,82644.0,0.193601]
[1742163052383,0.00222472,82647.0,82645.0,0.193597]
[1742163052582,0.0003388,82649.0,82648.0,0.193592]
[1742163052782,0.19615252,82649.0,82646.0,0.193596]
[1742163053688,0.00256352,82649.0,82647.0,0.193593]
[1742163054041,0.19615252,82649.0,82646.0,0.193596]
[1742163054241,0.1939278,82649.0,82646.0,0.193596]
[1742163054446,0.00221964,82648.0,82646.0,0.193596]
[1742163054672,0.00221964,82648.0,82647.0,0.27508092]
[1742163055273,0.00221964,82648.0,82647.0,1.77508092]
[1742163055698,0.0003388,82649.0,82648.0,0.205691]
[1742163056096,0.00255844,82649.0,82648.0,0.193592]
[1742163056681,0.0003388,82649.0,82648.0,0.193592]
[1742163056885,0.0003388,82649.0,82648.0,0.31316703]
[1742163057687,0.0003388,82649.0,82648.0,0.11957503]
[1742163058360,0.0025601,82649.0,82648.0,0.11957503]
[1742163058796,0.0025601,82649.0,82648.0,0.32526603]
[1742163061630,0.0025601,82649.0,82648.0,0.31316703]
[1742163061877,0.0025601,82649.0,82644.0,0.2057]
[1742163061878,0.505736,82630.0,82604.0,0.012105]
[1742163062137,1.00184951,82630.0,82608.0,0.193683]
[1742163062370,1.00443594,82630.0,82595.0,0.012107]
[1742163062603,1.01897679,82630.0,82595.0,0.205821]
[1742163062832,1.01897679,82630.0,82602.0,0.193699]
[1742163063085,1.05368487,82630.0,82600.0,0.193704]
[1742163063315,1.04335056,82630.0,82599.0,0.193704]
[1742163063542,1.04335056,82630.0,82598.0,0.205814]
[1742163063764,1.04335056,82630.0,82599.0,0.193706]
[1742163066455,1.00427594,82630.0,82629.0,0.0001689]
[1742163067382,0.35189994,82630.0,82629.0,0.0122709]
[1742163067598,0.35189994,82630.0,82629.0,1.5001689]
[1742163067849,0.35189994,82630.0,82629.0,1.61974393]
[1742163068080,0.35189994,82630.0,82629.0,1.82548193]
[1742163068750,0.34931351,82630.0,82629.0,1.82548193]
[1742163068970,0.34931351,82630.0,82629.0,0.0001689]
[1742163068971,0.55504951,82630.0,82629.0,0.0001689]
[1742163069452,0.35174578,82630.0,82629.0,0.0001689]
[1742163069685,0.35174578,82630.0,82629.0,0.2059069]
[1742163069888,0.35174578,82630.0,82629.0,0.0001689]
[1742163070136,0.35174578,82630.0,82629.0,0.1938049]
[1742163070386,0.35174578,82630.0,82629.0,0.2059069]
[1742163070588,0.00243227,82630.0,82629.0,0.2059069]
[1742163070808,0.012101,82636.0,82632.0,0.193628]
[1742163071034,0.012101,82636.0,82631.0,0.205732]
[1742163071035,0.19605505,82635.0,82631.0,0.205732]
[1742163071255,0.00243305,82635.0,82632.0,0.012101]
[1742163071587,0.00243305,82635.0,82630.0,0.012102]
[1742163071830,0.012101,82635.0,82631.0,0.02301099]
[1742163072036,0.01454009,82634.0,82631.0,0.02301099]
[1742163072283,0.01454009,82634.0,82631.0,0.21664199]
[1742163072488,0.20816609,82634.0,82631.0,0.02301099]
[1742163072715,0.20816609,82634.0,82631.0,0.21664199]
[1742163072716,0.00243909,82634.0,82631.0,0.21664199]
[1742163073020,0.00243909,82634.0,82632.0,0.04346529]
[1742163073804,0.00243909,82634.0,82633.0,0.205728]
[1742163074024,0.34931351,82638.0,82635.0,0.19362]
[1742163074217,0.35030581,82646.0,82644.0,0.2057]
[1742163074422,0.54390181,82646.0,82642.0,0.193604]
[1742163074646,0.34931351,82646.0,82643.0,0.2141734]
[1742163074853,0.193599,82645.0,82643.0,0.0205704]
[1742163075496,0.012101,82637.0,82630.0,0.012102]
[1742163075647,0.193627,82633.0,82630.0,0.205736]
[1742163076060,0.012101,82635.0,82630.0,0.193633]
[1742163076256,0.193622,82635.0,82632.0,0.205729]
[1742163076464,0.193622,82635.0,82633.0,0.11957503]
[1742163076664,0.205715,82638.0,82633.0,0.193625]
[1742163076889,0.205715,82638.0,82635.0,0.193622]
[1742163077135,0.193618,82637.0,82634.0,0.193623]
[1742163077354,0.205715,82638.0,82634.0,0.193623]
[1742163077535,0.193618,82637.0,82634.0,0.193623]
[1742163077732,0.193618,82637.0,82635.0,0.06173549]
[1742163078392,0.19362,82636.0,82635.0,0.06173549]
[1742163078811,0.0121,82640.0,82635.0,0.06173549]
[1742163078986,0.001896,82635.0,82634.0,0.205725]
[1742163079798,0.001896,82635.0,82634.0,0.20693503]
[1742163080015,0.001896,82635.0,82634.0,0.21918891]
[1742163080598,0.001896,82635.0,82634.0,0.205725]
[1742163080804,0.001896,82635.0,82634.0,0.21810893]
[1742163081036,0.001896,82635.0,82634.0,0.28229251]
[1742163081681,0.001896,82635.0,82634.0,0.77603251]
[1742163083499,0.001896,82635.0,82634.0,0.76364858]
[1742163083909,0.001896,82635.0,82634.0,0.31800858]
[1742163084724,0.193596,82646.0,82642.0,0.193603]
[1742163084955,0.193596,82646.0,82643.0,0.193603]
[1742163085098,0.00235999,82645.0,82643.0,0.193603]
[1742163085298,0.193595,82647.0,82644.0,0.0121]
[1742163085619,0.193597,82646.0,82643.0,0.193603]
[1742163087029,0.193601,82645.0,82642.0,0.193605]
[1742163087248,0.193597,82646.0,82643.0,0.2553142]
[1742163087423,0.193599,82645.0,82643.0,0.2553142]
[1742163087627,0.193594,82647.0,82644.0,0.193601]
[1742163088268,0.0003388,82649.0,82647.0,0.193594]
[1742163088405,0.0003388,82649.0,82648.0,0.02916052]
[1742163088841,0.0003388,82649.0,82648.0,0.23485152]
[1742163089701,0.0003388,82649.0,82648.0,0.22275252]
[1742163089904,0.0003388,82649.0,82648.0,0.02916052]
[1742163090098,0.0003388,82649.0,82648.0,0.22275252]
[1742163090305,0.0003388,82649.0,82648.0,0.23485152]
[1742163090507,0.0003388,82649.0,82648.0,0.02916052]
[1742163090709,0.0003388,82649.0,82648.0,0.22275252]
[1742163090910,0.0003388,82649.0,82648.0,0.23485152]
[1742163091825,0.0003388,82649.0,82648.0,0.22275252]
[1742163092236,0.0003388,82649.0,82648.0,0.23485152]
[1742163093225,0.0003388,82649.0,82648.0,0.31165152]
[1742163093667,0.0003388,82649.0,82648.0,0.35685152]
[1742163094063,0.0003388,82649.0,82648.0,1.87139237]
[1742163094491,0.0003388,82649.0,82648.0,2.17139237]
[1742163095165,8e-07,82650.0,82649.0,0.57022885]
[1742163095302,8e-07,82650.0,82649.0,0.68980388]
[1742163095503,8e-07,82650.0,82649.0,0.81437891]
[1742163095704,8e-07,82650.0,82649.0,2.26437891]
[1742163095916,0.0008,82669.0,82663.0,0.205653]
[1742163096133,0.00075027,82664.0,82663.0,0.3891481]
[1742163096351,0.00075027,82664.0,82663.0,0.46473865]
[1742163096975,2.7e-07,82664.0,82663.0,0.80993865]
[1742163097176,7e-08,82670.0,82669.0,0.493542]
[1742163097539,0.00012345,82670.0,82669.0,0.52017885]
[1742163097686,0.00012345,82670.0,82669.0,2.13975388]
[1742163098707,2.5e-07,82672.0,82671.0,0.3]
[1742163099041,2.5e-07,82672.0,82671.0,0.72154988]
[1742163099363,2.5e-07,82672.0,82671.0,0.59697485]
[1742163099559,2.5e-07,82672.0,82671.0,2.36110988]
[1742163100210,2.5e-07,82672.0,82671.0,2.48568491]
[1742163100499,2.5e-07,82672.0,82671.0,2.53568491]
[1742163101307,2.5e-07,82672.0,82671.0,2.53068491]
[1742163101670,2.5e-07,82672.0,82671.0,2.36110988]
[1742163101873,2.5e-07,82672.0,82671.0,2.41110988]
[1742163102076,2.5e-07,82672.0,82671.0,2.36110988]
[1742163102249,2.5e-07,82672.0,82671.0,2.41110988]
[1742163102639,2.5e-07,82672.0,82671.0,2.53568491]
[1742163103047,2.5e-07,82672.0,82671.0,2.54465207]
[1742163103474,1e-06,82685.0,82684.0,0.017094]
[1742163103732,0.0009881,82692.0,82691.0,0.505584]
[1742163103875,0.95872308,82700.0,82699.0,0.205564]
[1742163104071,0.95872308,82700.0,82696.0,0.012092]
[1742163104072,0.95884696,82700.0,82696.0,0.012092]
[1742163104493,0.95884696,82700.0,82698.0,0.205566]
[1742163104700,0.95884696,82700.0,82699.0,0.0556239]
[1742163104904,0.95884696,82700.0,82699.0,0.1324239]
[1742163105106,0.95884696,82700.0,82699.0,0.14696475]
[1742163105326,0.95884696,82700.0,82699.0,0.44696475]
[1742163105502,0.95884696,82700.0,82699.0,1.94696475]
[1742163106056,0.95884696,82700.0,82699.0,1.99216475]
[1742163106312,0.29477439,82700.0,82699.0,2.11173978]
[1742163106720,6.9e-07,82708.0,82705.0,0.505549]
[1742163106922,6.9e-07,82709.0,82708.0,0.33163085]
[1742163107072,6.9e-07,82709.0,82708.0,0.45120588]
[1742163107280,4.9e-07,82713.0,82712.0,0.560532]
[1742163107496,2e-07,82723.0,82722.0,0.012088]
[1742163107701,0.0003388,82747.0,82728.0,0.52003185]
[1742163107902,0.00046166,82729.0,82728.0,0.6197705]
[1742163108076,0.00046166,82729.0,82728.0,2.08778068]
[1742163108262,0.00046166,82729.0,82728.0,2.23190068]
[1742163109109,0.00046166,82729.0,82728.0,2.42747571]
[1742163110279,0.00046166,82729.0,82728.0,2.30766068]
[1742163113234,0.00046166,82729.0,82728.0,2.42723571]
[1742163113437,0.00046166,82729.0,82728.0,0.93223571]
[1742163113694,0.0003388,82747.0,82728.0,0.93223571]
[1742163113695,0.0003388,82747.0,82746.0,0.505447]
[1742163113881,0.0003388,82747.0,82746.0,0.649047]
[1742163114086,0.00075157,82747.0,82746.0,0.66358785]
[1742163114688,0.00075157,82747.0,82746.0,0.75193577]
[1742163115229,5.7e-07,82747.0,82746.0,0.75193577]
[1742163115379,5.7e-07,82747.0,82746.0,0.79546767]
[1742163116739,5.7e-07,82747.0,82746.0,2.29546767]
[1742163117617,5.7e-07,82747.0,82746.0,0.0435319]
[1742163117818,0.193355,82750.0,82746.0,0.0435319]
[1742163117933,0.0124228,82753.0,82747.0,0.04200719]
[1742163117934,0.193348,82752.0,82747.0,0.04200719]
[1742163118138,0.00262909,82749.0,82747.0,0.23536719]
[1742163118500,0.193348,82752.0,82748.0,0.193357]
[1742163119073,0.193348,82752.0,82747.0,0.04200719]
[1742163119283,0.1936868,82753.0,82749.0,0.193355]
[1742163119484,0.1936868,82753.0,82752.0,0.205432]
[1742163119485,0.0003388,82753.0,82752.0,0.205432]
[1742163120109,0.0003388,82753.0,82752.0,0.348992]
[1742163120315,0.0003388,82753.0,82752.0,0.36353285]
[1742163120739,0.0003388,82753.0,82752.0,0.205432]
[1742163120976,0.0003388,82753.0,82752.0,0.4311271]
[1742163122278,0.0003388,82753.0,82752.0,0.2876071]
[1742163125456,0.0124228,82753.0,82752.0,0.0821751]
[1742163125580,0.0003388,82753.0,82751.0,0.193349]
[1742163125783,0.00296998,82753.0,82751.0,0.193349]
[1742163126770,0.00296998,82753.0,82750.0,0.205432]
[1742163126999,0.00296998,82753.0,82734.0,1.5]
[1742163127176,0.012086,82736.0,82734.0,1.5]
[1742163127379,0.012086,82735.0,82725.0,0.205499]
[1742163127582,0.193384,82737.0,82731.0,0.012087]
[1742163127785,0.205464,82740.0,82734.0,0.205476]
[1742163128117,0.00262089,82736.0,82735.0,0.193388]
[1742163128318,0.193377,82740.0,82737.0,0.193381]
[1742163128434,0.193377,82740.0,82738.0,0.0447203]
[1742163128660,0.193377,82740.0,82724.0,0.012088]
[1742163128661,0.205484,82731.0,82724.0,0.012088]
[1742163128919,0.205484,82731.0,82722.0,0.193417]
[1742163129168,0.012088,82723.0,82718.0,0.193427]
[1742163129394,0.012088,82723.0,82697.0,1.154313]
[1742163129395,0.193428,82718.0,82712.0,0.01209]
[1742163129595,0.193428,82718.0,82717.0,0.02057017]
[1742163129799,0.205519,82717.0,82716.0,0.00058147]
[1742163133520,0.193424,82720.0,82716.0,0.00058147]
[1742163133724,0.193424,82720.0,82716.0,0.19401147]
[1742163133987,0.49219351,82725.0,82717.0,0.012089]
[1742163133988,0.34931351,82725.0,82717.0,0.012089]
[1742163134165,0.34931351,82725.0,82724.0,0.012088]
[1742163134397,0.34931351,82725.0,82724.0,0.0543976]
[1742163135148,0.012086,82739.0,82730.0,0.012087]
[1742163135350,0.0009849,82741.0,82734.0,0.012086]
[1742163135558,0.0130699,82741.0,82737.0,0.193383]
[1742163135738,0.012085,82741.0,82738.0,0.0410943]
[1742163136135,0.34931351,82749.0,82748.0,0.205442]
[1742163136330,0.193355,82749.0,82745.0,0.205449]
[1742163136518,0.19336,82748.0,82744.0,0.193367]
[1742163136719,0.012084,82750.0,82738.0,0.0410943]
[1742163136720,0.012085,82744.0,82738.0,0.0410943]
[1742163136929,0.012084,82749.0,82742.0,0.012085]
[1742163137170,0.193358,82748.0,82742.0,0.012085]
[1742163137425,0.193386,82736.0,82735.0,1.5]
[1742163137702,0.205472,82736.0,82735.0,1.5]
[1742163137889,0.193372,82742.0,82738.0,0.193381]
[1742163138063,0.193372,82742.0,82739.0,0.193379]
[1742163138268,0.2064183,82752.0,82749.0,0.193355]
[1742163138552,0.012084,82751.0,82746.0,0.193362]
[1742163138798,0.193358,82748.0,82745.0,0.193362]
[1742163138974,0.193356,82749.0,82746.0,0.234452]
[1742163139177,0.205436,82751.0,82747.0,0.19336]
[1742163139357,0.193352,82751.0,82748.0,0.193357]
[1742163139556,0.193352,82751.0,82746.0,0.053175]
[1742163139557,0.193353,82750.0,82746.0,0.053175]
[1742163139802,0.193358,82748.0,82746.0,0.04109]
[1742163140013,0.193378,82740.0,82735.0,1.81296103]
[1742163140218,0.193378,82740.0,82736.0,0.012086]
[1742163141611,0.19559197,82741.0,82740.0,0.11957503]
[1742163142210,0.19559197,82741.0,82735.0,0.0001686]
[1742163142211,0.205472,82736.0,82735.0,0.0001686]
[1742163142728,0.20768997,82736.0,82735.0,0.0001686]
[1742163143284,0.50768997,82736.0,82735.0,0.0001686]
[1742163143694,0.50768997,82736.0,82735.0,6e-07]
[1742163144646,0.85700348,82736.0,82735.0,6e-07]
[1742163145140,0.87154433,82736.0,82735.0,6e-07]
[1742163145344,0.205519,82717.0,82683.0,0.012094]
[1742163145583,0.99882398,82717.0,82716.0,4.7e-07]
[1742163145792,0.99948875,82717.0,82716.0,4.7e-07]
[1742163146179,1.01158126,82717.0,82716.0,4.7e-07]
[1742163147208,1.10522211,82717.0,82716.0,4.7e-07]
[1742163147413,1.15132211,82717.0,82716.0,4.7e-07]
[1742163148745,1.16040428,82717.0,82716.0,4.7e-07]
[1742163149334,1.21040428,82717.0,82716.0,4.7e-07]
[1742163150990,1.16040428,82717.0,82716.0,4.7e-07]
[1742163151187,1.21040428,82717.0,82716.0,4.7e-07]
[1742163151607,0.92428343,82717.0,82716.0,4.7e-07]
[1742163151811,1.02090343,82717.0,82716.0,4.7e-07]
[1742163152035,0.72090343,82717.0,82716.0,4.7e-07]
[1742163152259,0.55700875,82717.0,82716.0,4.7e-07]
[1742163152433,0.69972875,82717.0,82716.0,4.7e-07]
[1742163153329,0.69972875,82717.0,82716.0,0.00016957]
[1742163153741,0.99972875,82717.0,82716.0,0.00016957]